bitfinex/quotes_BTCUSD_20251016
["timestamp","ask_amount","ask_price","bid_price","bid_amount"]
[1760608142664,0.84647003,111580.0,111570.0,0.00621751]
[1760608142888,1.19549132,111580.0,111570.0,0.00621751]
[1760608143130,1.11178181,111580.0,111570.0,0.00621751]
[1760608143354,0.5491166,111580.0,111570.0,0.00621751]
[1760608143576,1.21634304,111580.0,111570.0,0.00621751]
[1760608144045,1.55634304,111580.0,111570.0,0.00621751]
[1760608144275,0.12171012,111580.0,111570.0,0.00621751]
[1760608144506,0.12014889,111580.0,111570.0,0.00621751]
[1760608144737,0.22314889,111580.0,111570.0,0.18547716]
[1760608145012,0.10314889,111580.0,111570.0,0.29309324]
[1760608145237,0.23314889,111580.0,111570.0,0.18547716]
[1760608145463,0.23314889,111580.0,111570.0,0.27516728]
[1760608145464,0.00014889,111580.0,111570.0,0.27516728]
[1760608146863,0.00014889,111580.0,111570.0,0.94239372]
[1760608147096,1e-08,111580.0,111570.0,0.94239372]
[1760608148068,1e-08,111580.0,111570.0,0.27516728]
[1760608148290,1e-08,111580.0,111570.0,0.94239372]
[1760608148963,0.10001691,111580.0,111570.0,0.94239372]
[1760608149405,0.10001691,111580.0,111570.0,0.27516728]
[1760608150087,0.10001691,111580.0,111570.0,0.94239372]
[1760608150776,0.25246199,111640.0,111610.0,0.17918697]
[1760608151031,0.25246199,111640.0,111620.0,0.17917312]
[1760608151032,0.03014919,111640.0,111620.0,0.17917312]
[1760608151261,0.13310919,111640.0,111630.0,0.1791633]
[1760608151491,0.03014919,111640.0,111630.0,0.1791633]
[1760608151725,0.00014919,111640.0,111630.0,0.26885342]
[1760608152448,0.00014919,111640.0,111630.0,0.93607986]
[1760608152950,0.00014919,111640.0,111630.0,0.26885342]
[1760608153422,0.00014919,111640.0,111630.0,0.08969012]
[1760608153666,0.02014919,111640.0,111630.0,0.19195867]
[1760608154133,0.00014919,111640.0,111630.0,0.19195867]
[1760608154836,0.00014919,111640.0,111630.0,0.28676975]
[1760608155058,0.00014919,111640.0,111630.0,0.26885342]
[1760608155529,0.00014919,111640.0,111630.0,0.93607986]
[1760608156003,1e-08,111650.0,111630.0,1.27607986]
[1760608156234,1e-08,111650.0,111640.0,1.37898381]
[1760608156462,1e-08,111650.0,111640.0,1.41516609]
[1760608156915,1e-08,111650.0,111640.0,1.27606381]
[1760608157141,1e-08,111650.0,111640.0,1.37898381]
[1760608157378,1e-08,111650.0,111640.0,1.27606381]
[1760608157613,1e-08,111650.0,111640.0,0.93606381]
[1760608158123,1e-08,111650.0,111640.0,0.26883737]
[1760608158346,1e-08,111650.0,111640.0,0.37171737]
[1760608158573,1e-08,111650.0,111640.0,0.26883737]
[1760608158800,1e-08,111650.0,111620.0,0.17917312]
[1760608159017,0.11000001,111650.0,111640.0,0.17914725]
[1760608159267,0.10000001,111650.0,111640.0,0.17914725]
[1760608159494,0.10000001,111650.0,111640.0,0.70264787]
[1760608159724,0.10000001,111650.0,111640.0,0.17914725]
[1760608160209,0.10000001,111650.0,111640.0,0.70264787]
[1760608160470,0.10000001,111650.0,111640.0,0.80552787]
[1760608160935,0.10000001,111650.0,111640.0,1.23933837]
[1760608161397,0.10000001,111650.0,111640.0,0.26883737]
[1760608161618,1e-08,111650.0,111640.0,1.23929837]
[1760608161858,1e-08,111650.0,111640.0,1.57929837]
[1760608162077,1e-08,111650.0,111640.0,0.71167737]
[1760608162306,1e-08,111650.0,111640.0,1.57929837]
[1760608163079,1e-08,111650.0,111640.0,0.71167737]
[1760608163308,1e-08,111650.0,111640.0,1.57929837]
[1760608163538,1e-08,111650.0,111640.0,1.64358288]
[1760608163770,1e-08,111650.0,111640.0,1.61548065]
[1760608164239,1e-08,111650.0,111640.0,1.64354288]
[1760608165213,1e-08,111650.0,111640.0,1.57925837]
[1760608165442,1e-08,111650.0,111640.0,1.47645837]
[1760608165698,1e-08,111650.0,111640.0,1.61544065]
[1760608165927,1e-08,111650.0,111640.0,1.57925837]
[1760608166881,1e-08,111650.0,111640.0,1.47645837]
[1760608167111,1e-08,111650.0,111640.0,1.57921837]
[1760608167349,1e-08,111650.0,111640.0,0.71159737]
[1760608167582,1e-08,111650.0,111640.0,1.61540065]
[1760608167819,0.0717521,111720.0,111710.0,0.179035]
[1760608168047,0.0717521,111720.0,111710.0,0.62592505]
[1760608168305,0.25969185,111740.0,111710.0,0.179035]
[1760608168536,0.0002,111760.0,111720.0,0.18796924]
[1760608168775,0.28265012,111760.0,111730.0,0.17900295]
[1760608169013,0.28314776,111760.0,111740.0,0.1789849]
[1760608169247,0.18791973,111750.0,111720.0,0.17901631]
[1760608169480,0.82142035,111750.0,111710.0,0.16144222]
[1760608169705,0.82142035,111750.0,111720.0,0.09864106]
[1760608169706,0.11,111750.0,111720.0,0.09864106]
[1760608169948,0.28897101,111750.0,111720.0,0.71145272]
[1760608170196,0.17898866,111740.0,111710.0,0.17903313]
[1760608170429,0.17898866,111740.0,111710.0,0.08969012]
[1760608170430,0.297938,111740.0,111710.0,0.08969012]
[1760608170662,0.17902283,111720.0,111690.0,0.25080312]
[1760608170889,0.14,111720.0,111690.0,0.34944659]
[1760608171362,0.17,111750.0,111710.0,0.5055626]
[1760608171609,0.0002,111760.0,111740.0,0.61279743]
[1760608171849,0.10272,111740.0,111730.0,0.26866288]
[1760608172118,0.10272,111740.0,111730.0,0.17897276]
[1760608172355,0.00069764,111760.0,111740.0,0.17898418]
[1760608172586,0.10272,111750.0,111730.0,0.17897276]
[1760608172818,0.17272,111750.0,111720.0,0.18792378]
[1760608173047,0.35169121,111750.0,111720.0,0.27711694]
[1760608173275,0.35169121,111750.0,111720.0,0.17901071]
[1760608173276,0.44138763,111750.0,111720.0,0.17901071]
[1760608173500,0.10268,111740.0,111730.0,0.17899403]
[1760608173727,0.18860107,111760.0,111730.0,0.17900179]
[1760608173952,0.10268,111740.0,111730.0,0.17900295]
[1760608174190,0.10268,111750.0,111730.0,0.17900295]
[1760608174422,0.10268,111750.0,111740.0,0.17898693]
[1760608174714,0.00069764,111760.0,111740.0,0.61279743]
[1760608174945,0.09069764,111760.0,111750.0,0.17897091]
[1760608175167,0.19337764,111760.0,111750.0,0.17897091]
[1760608175399,0.00069764,111760.0,111750.0,0.17897091]
[1760608175630,0.00069764,111760.0,111730.0,0.26869033]
[1760608175631,0.40233418,111760.0,111730.0,0.26869033]
[1760608175870,0.40233418,111760.0,111730.0,0.16144222]
[1760608176096,0.29965418,111760.0,111730.0,0.78954779]
[1760608176325,0.29965418,111760.0,111730.0,0.3404448]
[1760608176565,0.10264,111750.0,111730.0,0.34939494]
[1760608176802,0.10264,111750.0,111730.0,0.61280718]
[1760608176803,0.14,111750.0,111730.0,0.61280718]
[1760608177034,0.00069764,111760.0,111740.0,0.61279743]
[1760608177269,0.10264,111750.0,111740.0,0.17898693]
[1760608177519,0.00069764,111760.0,111750.0,0.17897091]
[1760608177997,0.11333764,111760.0,111750.0,0.17897091]
[1760608178229,0.01069764,111760.0,111750.0,0.17897091]
[1760608178475,0.00069764,111760.0,111750.0,0.17897091]
[1760608178721,0.0002,111770.0,111760.0,0.1789549]
[1760608178948,0.00034921,111770.0,111760.0,0.70245552]
[1760608179170,0.00034921,111770.0,111760.0,0.26864502]
[1760608179397,0.10823594,111770.0,111760.0,0.70245552]
[1760608179633,0.10819594,111770.0,111760.0,0.70245552]
[1760608179875,0.00559594,111770.0,111760.0,1.13626602]
[1760608180108,0.10819594,111770.0,111760.0,0.70245552]
[1760608180336,0.10819594,111770.0,111760.0,0.1789549]
[1760608180567,0.10819594,111770.0,111740.0,0.18793627]
[1760608180798,0.14034921,111770.0,111750.0,0.10745799]
[1760608181035,0.00034921,111770.0,111760.0,0.6127654]
[1760608181268,0.00034921,111770.0,111760.0,1.13626602]
[1760608181490,0.10294921,111770.0,111760.0,1.13626602]
[1760608181723,0.00034921,111770.0,111760.0,1.13626602]
[1760608182451,0.10290921,111770.0,111760.0,0.70245552]
[1760608182676,0.00034921,111770.0,111760.0,1.13626602]
[1760608183121,0.00034921,111770.0,111760.0,0.26864502]
[1760608183344,0.00034921,111770.0,111760.0,1.13626602]
[1760608185291,0.00034921,111770.0,111760.0,0.26864502]
[1760608185515,0.00034921,111770.0,111760.0,1.13626602]
[1760608186195,0.0002,111800.0,111790.0,0.17890687]
[1760608186412,0.0002,111800.0,111790.0,0.72029817]
[1760608186635,0.00719376,111800.0,111790.0,0.70240749]
[1760608187314,0.00719376,111800.0,111790.0,1.13621799]
[1760608187772,0.025,111810.0,111800.0,0.17889087]
[1760608187993,0.025,111810.0,111800.0,0.10165593]
[1760608187994,0.02514899,111810.0,111800.0,0.10165593]
[1760608188223,0.02514899,111810.0,111800.0,0.5413897]
[1760608188447,0.02514899,111810.0,111800.0,0.70239149]
[1760608188668,0.02514899,111810.0,111800.0,0.26858099]
[1760608188920,0.02514899,111810.0,111800.0,1.13620199]
[1760608189142,0.02514899,111810.0,111800.0,0.70239149]
[1760608189376,0.02514899,111810.0,111800.0,1.13620199]
[1760608189837,0.02514899,111810.0,111800.0,0.26858099]
[1760608190056,0.02514899,111810.0,111800.0,1.13620199]
[1760608190331,0.02514899,111810.0,111800.0,0.26858099]
[1760608190558,0.02514899,111810.0,111800.0,1.13620199]
[1760608191038,0.02514899,111810.0,111800.0,0.70239149]
[1760608191265,0.02514899,111810.0,111800.0,0.26858099]
[1760608191527,0.02514899,111810.0,111800.0,1.13620199]
[1760608191958,0.02514899,111810.0,111800.0,1.23864199]
[1760608193320,0.02573143,111810.0,111800.0,1.23864199]
[1760608194227,0.02573143,111810.0,111800.0,0.70239149]
[1760608194450,0.02573143,111810.0,111800.0,0.26858099]
[1760608194675,0.025,111820.0,111810.0,0.61268537]
[1760608194900,0.025,111820.0,111810.0,0.70237549]
[1760608195128,0.025,111820.0,111810.0,0.26856499]
[1760608195351,0.00859375,111820.0,111810.0,0.80477549]
[1760608195593,0.00859375,111820.0,111810.0,0.37096499]
[1760608195816,0.00859375,111820.0,111810.0,0.80477549]
[1760608197482,0.00859375,111820.0,111810.0,0.80473549]
[1760608197918,0.00859375,111820.0,111810.0,0.26856499]
[1760608198146,0.00859375,111820.0,111810.0,0.08969012]
[1760608198373,0.00859375,111820.0,111810.0,0.72026297]
[1760608198596,0.00859375,111820.0,111810.0,0.70237549]
[1760608198822,0.00859375,111820.0,111810.0,0.80469549]
[1760608199043,0.00859375,111820.0,111810.0,0.37088499]
[1760608199293,0.00859375,111820.0,111810.0,0.80469549]
[1760608200424,0.00917612,111820.0,111810.0,0.80469549]
[1760608201103,0.00917612,111820.0,111810.0,0.70237549]
[1760608201348,0.00917612,111820.0,111810.0,0.08969012]
[1760608201588,0.00917612,111820.0,111790.0,0.18785221]
[1760608201834,0.02508,111830.0,111810.0,0.61268537]
[1760608202061,0.02508,111830.0,111820.0,0.71413218]
[1760608202291,0.02508,111830.0,111820.0,0.268549]
[1760608202530,0.17885936,111820.0,111790.0,0.1880012]
[1760608202761,0.3078023,111820.0,111790.0,0.00014899]
[1760608202985,0.17888865,111810.0,111790.0,0.00014899]
[1760608203230,0.02,111810.0,111790.0,0.61286632]
[1760608203463,0.17887487,111810.0,111790.0,0.08983911]
[1760608203697,0.17889087,111800.0,111790.0,0.00014899]
[1760608203934,0.06,111800.0,111790.0,0.00014899]
[1760608204180,0.23889087,111800.0,111790.0,0.00014899]
[1760608204553,0.32858099,111800.0,111790.0,0.00014899]
[1760608205352,0.76239149,111800.0,111790.0,0.00014899]
[1760608205573,0.32858099,111800.0,111790.0,0.00014899]
[1760608206034,0.15124842,111800.0,111790.0,0.00014899]
[1760608206273,0.1037983,111800.0,111790.0,0.00014899]
[1760608206512,0.1878023,111820.0,111790.0,0.17905447]
[1760608206749,0.28111587,111810.0,111790.0,0.00014899]
[1760608206997,0.17889087,111800.0,111790.0,0.00014899]
[1760608207231,0.1,111800.0,111790.0,0.61286636]
[1760608207460,0.17887727,111810.0,111790.0,0.61286636]
[1760608207704,0.32111727,111810.0,111790.0,0.61286636]
[1760608207939,0.32111727,111810.0,111790.0,0.00014899]
[1760608208192,0.28113087,111800.0,111790.0,0.00014899]
[1760608208653,0.50082099,111800.0,111790.0,0.00014899]
[1760608209104,0.93463149,111800.0,111790.0,0.00014899]
[1760608209328,0.50082099,111800.0,111790.0,0.00014899]
[1760608209573,0.73858099,111800.0,111790.0,0.00014899]
[1760608209805,0.84078099,111800.0,111790.0,0.00014899]
[1760608210274,0.09667268,111800.0,111790.0,0.00014899]
[1760608210528,0.1022,111800.0,111790.0,0.00014899]
[1760608210763,0.1922,111800.0,111790.0,0.00014899]
[1760608210993,0.37109087,111800.0,111790.0,0.00014899]
[1760608211228,0.46078099,111800.0,111790.0,0.00014899]
[1760608211688,0.37109087,111800.0,111790.0,0.00014899]
[1760608212450,0.09,111800.0,111790.0,0.00014899]
[1760608212672,0.09,111800.0,111790.0,0.17905586]
[1760608212894,0.28105087,111800.0,111790.0,0.00014899]
[1760608213123,0.41105087,111800.0,111790.0,0.00014899]
[1760608214742,0.50074099,111800.0,111790.0,0.00014899]
[1760608215866,0.93455149,111800.0,111790.0,0.00014899]
[1760608216582,1.31229208,111800.0,111790.0,0.00014899]
[1760608217042,6.36229208,111800.0,111790.0,0.00014899]
[1760608217306,6.36229208,111800.0,111750.0,0.0717521]
[1760608217307,0.1789549,111760.0,111750.0,0.0717521]
[1760608217522,0.23212,111760.0,111750.0,0.07190131]
[1760608217746,0.3089549,111760.0,111750.0,0.07190131]
[1760608217969,0.50076502,111760.0,111750.0,0.00014921]
[1760608219089,0.93457552,111760.0,111750.0,0.00014921]
[1760608219311,0.50076502,111760.0,111750.0,0.00014921]
[1760608220030,0.8769473,111760.0,111750.0,0.00014921]
[1760608220240,1.54256934,111760.0,111750.0,0.00014921]
[1760608220458,6.54256934,111760.0,111750.0,0.00014921]
[1760608220909,6.56174022,111760.0,111750.0,0.00014921]
[1760608221127,6.56174022,111760.0,111720.0,0.00620524]
[1760608221128,0.84462499,111730.0,111720.0,0.00620524]
[1760608221363,0.12014877,111730.0,111720.0,0.00620524]
[1760608221596,0.12014877,111730.0,111720.0,0.18522421]
[1760608221819,0.12014877,111730.0,111720.0,0.00620524]
[1760608222062,0.40123172,111730.0,111720.0,0.00620524]
[1760608222525,0.49092184,111730.0,111720.0,0.00620524]
[1760608222753,1.15654388,111730.0,111720.0,0.00620524]
[1760608223190,0.20983889,111730.0,111720.0,0.00620524]
[1760608223426,0.40123172,111730.0,111720.0,0.00620524]
[1760608223651,0.29915172,111730.0,111720.0,0.00620524]
[1760608223920,0.40123172,111730.0,111720.0,0.00620524]
[1760608224138,0.49092184,111730.0,111720.0,0.00620524]
[1760608225475,1.15654388,111730.0,111720.0,0.00620524]
[1760608226610,0.49092184,111730.0,111720.0,0.00620524]
[1760608226841,1.19272616,111730.0,111720.0,0.00620524]
[1760608227345,0.49092184,111730.0,111720.0,0.00620524]
[1760608227595,0.20983889,111730.0,111720.0,0.00620524]
[1760608227828,0.49088184,111730.0,111720.0,0.00620524]
[1760608228814,0.40691535,111730.0,111720.0,0.00620524]
[1760608229078,1.12253739,111730.0,111720.0,0.00620524]
[1760608229336,1.08635511,111730.0,111720.0,0.00620524]
[1760608229593,0.33100295,111730.0,111720.0,0.00620524]
[1760608230066,0.152,111730.0,111720.0,0.00620524]
[1760608230316,0.33100295,111730.0,111720.0,0.00620524]
[1760608230548,0.42069307,111730.0,111720.0,0.00620524]
[1760608230771,1.08631511,111730.0,111720.0,0.00620524]
[1760608231522,1.12249739,111730.0,111720.0,0.00620524]
[1760608231751,1.46249739,111730.0,111720.0,0.00620524]
[1760608232949,0.31869307,111730.0,111720.0,0.00620524]
[1760608233186,0.42065307,111730.0,111720.0,0.00620524]
[1760608233434,1.08627511,111730.0,111720.0,0.00620524]
[1760608233949,1.46245739,111730.0,111720.0,0.00620524]
[1760608234450,0.17906706,111690.0,111680.0,0.0721521]
[1760608234676,0.21196,111690.0,111680.0,0.0721521]
[1760608235150,0.39102706,111690.0,111680.0,0.0004]
[1760608235671,0.21196,111690.0,111680.0,0.00089764]
[1760608235888,0.39102706,111690.0,111680.0,0.00089764]
[1760608236165,0.21196,111690.0,111680.0,0.00089764]
[1760608236409,0.10192,111700.0,111690.0,0.17906669]
[1760608236676,0.10192,111710.0,111690.0,0.17906669]
[1760608236866,0.10192,111710.0,111690.0,0.17906589]
[1760608237083,0.22192,111710.0,111690.0,0.17906589]
[1760608237318,0.40095613,111710.0,111690.0,0.17906589]
[1760608237539,0.40990788,111710.0,111680.0,0.1799727]
[1760608237764,0.22192,111710.0,111690.0,0.17906566]
[1760608237995,0.40095507,111710.0,111690.0,0.17906566]
[1760608238219,0.22192,111710.0,111690.0,0.17906566]
[1760608238442,0.40095539,111710.0,111690.0,0.17906566]
[1760608238677,0.22192,111710.0,111690.0,0.17906702]
[1760608239139,0.12,111710.0,111690.0,0.17906702]
[1760608239377,0.18794143,111740.0,111700.0,0.27769369]
[1760608239605,0.10188,111730.0,111720.0,0.17901739]
[1760608239829,0.40088659,111730.0,111710.0,0.17903173]
[1760608240057,0.4098335,111730.0,111700.0,0.17905021]
[1760608240278,0.4098335,111730.0,111700.0,0.26874033]
[1760608240738,0.40088366,111730.0,111710.0,0.17902242]
[1760608240949,0.22188,111730.0,111710.0,0.17902242]
[1760608241181,0.40088648,111730.0,111710.0,0.17402242]
[1760608241401,0.40088648,111730.0,111700.0,0.27819052]
[1760608241619,0.22188,111730.0,111710.0,0.17902079]
[1760608242076,0.22188,111730.0,111720.0,0.17901897]
[1760608242549,0.00155908,111750.0,111730.0,0.17900278]
[1760608242769,0.00155908,111750.0,111720.0,0.17901897]
[1760608242770,0.10184,111740.0,111720.0,0.17901897]
[1760608243013,0.04,111740.0,111730.0,0.17900295]
[1760608243283,0.85360231,111780.0,111740.0,0.18793627]
[1760608243512,0.17895606,111760.0,111740.0,0.17898693]
[1760608243745,0.23895493,111760.0,111740.0,0.17898693]
[1760608243978,0.17898166,111750.0,111730.0,0.08969012]
[1760608244221,0.08,111750.0,111730.0,0.26869218]
[1760608244696,0.25897179,111750.0,111730.0,0.26918982]
[1760608244933,0.08,111750.0,111740.0,0.17898693]
[1760608245160,0.08,111750.0,111730.0,0.26918982]
[1760608245390,0.25897634,111750.0,111730.0,0.00049764]
[1760608245868,0.28078693,111740.0,111730.0,0.00049764]
[1760608246112,0.1418,111740.0,111730.0,0.00049764]
[1760608246351,0.18944559,111770.0,111730.0,0.287091]
[1760608246591,0.37936695,111760.0,111730.0,0.00049764]
[1760608246824,0.41071521,111760.0,111730.0,0.17949928]
[1760608247066,0.17897451,111750.0,111730.0,0.17949928]
[1760608247293,0.29897451,111750.0,111730.0,0.17949843]
[1760608247518,0.28074693,111740.0,111730.0,0.00049764]
[1760608247741,0.41074693,111740.0,111730.0,0.00049764]
[1760608248191,0.23176,111740.0,111730.0,0.17950059]
[1760608248417,0.41074693,111740.0,111730.0,0.00049764]
[1760608248877,0.23176,111740.0,111730.0,0.00049764]
[1760608249086,0.41074693,111740.0,111730.0,0.00049764]
[1760608249324,0.23176,111740.0,111730.0,0.00049764]
[1760608249553,0.23176,111740.0,111730.0,0.17950059]
[1760608249785,0.41074693,111740.0,111730.0,0.00049764]
[1760608250011,0.23176,111740.0,111730.0,0.00049764]
[1760608250241,0.23176,111740.0,111730.0,0.17950059]
[1760608251028,0.41074693,111740.0,111730.0,0.00049764]
[1760608251916,1.16605909,111740.0,111730.0,0.00049764]
[1760608252819,1.22151607,111740.0,111730.0,0.00049764]
[1760608253246,0.55589403,111740.0,111730.0,0.00049764]
[1760608253479,1.22151607,111740.0,111730.0,0.00049764]
[1760608254854,6.56151607,111740.0,111730.0,0.00049764]
[1760608255086,6.59369296,111740.0,111730.0,1e-08]
[1760608255277,6.6419583,111740.0,111730.0,1e-08]
[1760608255738,6.60978141,111740.0,111730.0,1e-08]
[1760608255964,0.17901897,111720.0,111710.0,1e-08]
[1760608256219,6.30171994,111720.0,111710.0,0.00014878]
[1760608256434,6.25352084,111720.0,111710.0,0.00014878]
[1760608256899,6.25508041,111720.0,111710.0,0.00014878]
[1760608257130,6.25508041,111720.0,111710.0,1e-08]
[1760608257583,6.30327951,111720.0,111710.0,1e-08]
[1760608258042,6.64327951,111720.0,111710.0,1e-08]
[1760608258264,6.61114678,111720.0,111710.0,1e-08]
[1760608258763,6.62532316,111720.0,111710.0,1e-08]
[1760608260356,6.52372316,111720.0,111710.0,1e-08]
[1760608260588,6.64154393,111720.0,111710.0,1e-08]
[1760608261032,6.60946611,111720.0,111710.0,1e-08]
[1760608261288,6.64154391,111720.0,111710.0,1e-08]
[1760608261508,6.57328383,111720.0,111710.0,1e-08]
[1760608261752,6.61102579,111720.0,111710.0,1e-08]
[1760608262198,6.64180695,111720.0,111710.0,1e-08]
[1760608262427,6.64088054,111720.0,111710.0,1e-08]
[1760608262673,0.17906706,111690.0,111680.0,0.0004]
[1760608262903,0.82042612,111690.0,111680.0,0.0004]
[1760608263136,0.37890612,111690.0,111680.0,0.0004]
[1760608263361,0.11014894,111690.0,111680.0,0.17948309]
[1760608263583,0.390736,111690.0,111680.0,0.0004]
[1760608263799,0.21166894,111690.0,111680.0,0.0004]
[1760608264009,0.289216,111690.0,111680.0,0.0004]
[1760608264225,0.390736,111690.0,111680.0,0.0004]
[1760608264651,0.289216,111690.0,111680.0,0.0004]
[1760608264867,0.390736,111690.0,111680.0,0.0004]
[1760608265104,0.289216,111690.0,111680.0,0.0004]
[1760608265317,0.390736,111690.0,111680.0,0.0004]
[1760608266703,0.21166894,111690.0,111680.0,0.0004]
[1760608266921,0.390736,111690.0,111680.0,0.0004]
[1760608267142,0.21166894,111690.0,111680.0,0.17948309]
[1760608267369,0.21162894,111690.0,111680.0,0.0004]
[1760608268037,0.390696,111690.0,111680.0,0.0004]
[1760608268299,0.48038612,111690.0,111680.0,0.0004]
[1760608268524,1.18219044,111690.0,111680.0,0.00215013]
[1760608269240,0.8565684,111690.0,111680.0,0.00215013]
[1760608269461,1.52219044,111690.0,111680.0,0.00215013]
[1760608269683,6.54139526,111690.0,111680.0,1e-08]
[1760608269913,5.87577322,111690.0,111680.0,1e-08]
[1760608270130,6.54139526,111690.0,111680.0,1e-08]
[1760608270345,6.5654092,111690.0,111680.0,1e-08]
[1760608270785,6.6597392,111690.0,111680.0,1e-08]
[1760608271001,6.66777185,111690.0,111680.0,1e-08]
[1760608271240,6.69177037,111690.0,111680.0,1e-08]
[1760608271461,6.66777185,111690.0,111680.0,1e-08]
[1760608272150,6.66933209,111690.0,111680.0,1e-08]
[1760608272587,6.71740198,111690.0,111680.0,1e-08]
[1760608273044,6.05177994,111690.0,111680.0,1e-08]
[1760608273268,6.49749388,111690.0,111680.0,1e-08]
[1760608273491,6.5428355,111690.0,111680.0,1e-08]
[1760608273712,6.06529322,111690.0,111680.0,1e-08]
[1760608273946,6.16665322,111690.0,111680.0,1e-08]
[1760608274198,6.1474484,111690.0,111680.0,1e-08]
[1760608274428,6.4874484,111690.0,111680.0,1e-08]
[1760608274650,1.52363068,111690.0,111680.0,1e-08]
[1760608275292,6.52363068,111690.0,111680.0,1e-08]
[1760608275511,6.54281222,111690.0,111680.0,1e-08]
[1760608276199,6.44145222,111690.0,111680.0,1e-08]
[1760608276412,1.54277222,111690.0,111680.0,1e-08]
[1760608276652,1.52359068,111690.0,111680.0,1e-08]
[1760608277095,0.85796864,111690.0,111680.0,1e-08]
[1760608277316,0.72046636,111690.0,111680.0,1e-08]
[1760608277752,0.82178636,111690.0,111680.0,1e-08]
[1760608278229,0.85796864,111690.0,111680.0,1e-08]
[1760608278453,1.52359068,111690.0,111680.0,1e-08]
[1760608278672,6.54279278,111690.0,111680.0,1e-08]
[1760608278895,0.17911517,111660.0,111650.0,0.0717521]
[1760608279113,0.22128,111660.0,111650.0,0.0717521]
[1760608279336,0.22128,111660.0,111640.0,0.84476817]
[1760608279337,0.40039517,111660.0,111640.0,0.84476817]
[1760608279572,0.29911517,111660.0,111640.0,0.17914615]
[1760608279782,0.29911517,111660.0,111640.0,0.0178095]
[1760608279999,0.29911517,111660.0,111640.0,0.19695529]
[1760608281843,0.17914725,111640.0,111630.0,0.0004]
[1760608281936,0.28041121,111650.0,111630.0,0.0004]
[1760608282155,0.15128,111650.0,111630.0,0.19553394]
[1760608282376,0.15128,111650.0,111640.0,0.17914725]
[1760608282594,0.1512,111650.0,111630.0,0.61340889]
[1760608282811,0.33033128,111650.0,111630.0,0.1795633]
[1760608283040,0.33033128,111650.0,111630.0,0.19734129]
[1760608283501,0.17914725,111640.0,111630.0,0.0004]
[1760608283714,0.29914725,111640.0,111630.0,0.0004]
[1760608283940,0.73299284,111640.0,111630.0,0.0004]
[1760608284161,0.29914725,111640.0,111630.0,0.0004]
[1760608284394,0.73299284,111640.0,111630.0,0.0004]
[1760608284611,0.82268296,111640.0,111630.0,0.0004]
[1760608285069,0.84196765,111640.0,111630.0,0.00331859]
[1760608285306,1.27581324,111640.0,111630.0,0.00331859]
[1760608285518,1.61581324,111640.0,111630.0,0.00331859]
[1760608286212,1.65355608,111640.0,111630.0,0.00331859]
[1760608286431,1.67752787,111640.0,111630.0,0.00331859]
[1760608287968,6.67752787,111640.0,111630.0,0.00331859]
[1760608288232,6.70957446,111640.0,111630.0,0.00331859]
[1760608288700,1.34324172,111640.0,111630.0,0.00331859]
[1760608288926,0.40812206,111640.0,111630.0,0.00331859]
[1760608289375,0.48995737,111640.0,111630.0,0.00331859]
[1760608289832,0.92380296,111640.0,111630.0,0.00331859]
[1760608290069,1.39383083,111640.0,111630.0,0.00331859]
[1760608290291,1.75308969,111640.0,111630.0,0.00331859]
[1760608290736,1.77706148,111640.0,111630.0,0.00331859]
[1760608291394,6.77706148,111640.0,111630.0,0.00331859]
[1760608292078,6.83476683,111640.0,111630.0,1e-08]
[1760608292524,6.83479608,111640.0,111630.0,1e-08]
[1760608292742,5.9670249,111640.0,111630.0,1e-08]
[1760608292962,6.81070128,111640.0,111630.0,1e-08]
[1760608293182,1.67758544,111640.0,111630.0,1e-08]
[1760608293423,6.77862544,111640.0,111630.0,1e-08]
[1760608294125,1.77862544,111640.0,111630.0,1e-08]
[1760608294346,6.81070128,111640.0,111630.0,1e-08]
[1760608294570,6.78664619,111640.0,111630.0,1e-08]
[1760608294791,6.83471608,111640.0,111630.0,1e-08]
[1760608295240,6.73367608,111640.0,111630.0,1e-08]
[1760608295456,6.78660619,111640.0,111630.0,1e-08]
[1760608295674,16.81066188,111640.0,111630.0,1e-08]
[1760608296311,16.78660619,111640.0,111630.0,1e-08]
[1760608296521,16.81066379,111640.0,111630.0,1e-08]
[1760608297237,16.81062379,111640.0,111630.0,1e-08]
[1760608297678,16.77444151,111640.0,111630.0,1e-08]
[1760608297896,11.81151333,111640.0,111630.0,1e-08]
[1760608298339,16.81151333,111640.0,111630.0,1e-08]
[1760608298564,16.78745573,111640.0,111630.0,1e-08]
[1760608299003,15.91887501,111640.0,111630.0,1e-08]
[1760608299233,16.78745573,111640.0,111630.0,1e-08]
[1760608299674,16.71056793,111640.0,111630.0,1e-08]
[1760608299905,10.40965689,111640.0,111630.0,1e-08]
[1760608300162,11.28486725,111640.0,111630.0,1e-08]
[1760608300676,11.61667695,111640.0,111630.0,1e-08]
[1760608300902,11.75377923,111640.0,111630.0,1e-08]
[1760608302206,11.18238659,111640.0,111630.0,1e-08]
[1760608302437,10.84901623,111640.0,111630.0,1e-08]
[1760608302647,11.28330659,111640.0,111630.0,1e-08]
[1760608302868,10.40809623,111640.0,111630.0,1e-08]
[1760608303086,10.48971737,111640.0,111630.0,1e-08]
[1760608303299,10.92400773,111640.0,111630.0,1e-08]
[1760608303957,11.27667394,111640.0,111630.0,1e-08]
[1760608304171,10.94322358,111640.0,111630.0,1e-08]
[1760608304382,10.50893322,111640.0,111630.0,1e-08]
[1760608304597,10.94322358,111640.0,111630.0,1e-08]
[1760608305075,11.31285622,111640.0,111630.0,1e-08]
[1760608305291,11.41369622,111640.0,111630.0,1e-08]
[1760608305504,11.77776842,111640.0,111630.0,1e-08]
[1760608305712,11.67692842,111640.0,111630.0,1e-08]
[1760608305920,16.80980426,111640.0,111630.0,1e-08]
[1760608306347,16.80172611,111640.0,111630.0,1e-08]
[1760608307209,16.79765594,111640.0,111630.0,1e-08]
[1760608307494,0.00041783,111630.0,111570.0,0.25997422]
[1760608307738,0.00041783,111630.0,111580.0,0.19716768]
[1760608307739,0.1792271,111600.0,111580.0,0.19716768]
[1760608307959,0.3800271,111600.0,111580.0,0.19716768]
[1760608309126,0.3799871,111600.0,111580.0,0.19716768]
[1760608309578,0.17922752,111590.0,111580.0,0.01792435]
[1760608309796,0.30922752,111590.0,111580.0,0.01792435]
[1760608310429,0.30922752,111590.0,111570.0,0.26944744]
[1760608312749,0.17924359,111580.0,111570.0,0.00049782]
[1760608312782,0.27992359,111580.0,111570.0,0.00049782]
[1760608312963,0.83421395,111580.0,111570.0,0.00049782]
[1760608313166,0.83421395,111580.0,111570.0,0.09018794]
[1760608313167,0.12,111580.0,111570.0,0.09018794]
[1760608313376,0.22068,111580.0,111570.0,0.28737355]
[1760608313750,0.12,111580.0,111570.0,0.27295257]
[1760608314002,0.12,111580.0,111570.0,0.09369292]
[1760608314224,0.12,111580.0,111570.0,0.27295257]